fUST/lending_fUST_20250312
["ID","MTS","AMOUNT","RATE_DAILY","PERIOD"]
[355906973,1741708810330,696.83656428,0.00021037,2]
[355906974,1741708812155,476.59182821,0.00022089,2]
[355906975,1741708813454,465.57959141,0.00023193,2]
[355906976,1741708814665,465.02897957,0.00024353,2]
[355906977,1741708832706,804.64988169,0.00023819,2]
[355906978,1741708833104,804.64988169,0.00023966,2]
[355906979,1741708834352,804.64988169,0.00024275,2]
[355906980,1741708834718,804.64988169,0.00024438,2]
[355906981,1741708835333,804.64988169,0.00024873,2]
[355906982,1741708882212,151.0,0.00025,30]
[355906983,1741708891526,111318.0830602,0.00024283,2]
[355906984,1741708899572,469.0,0.00025,10]
[355906985,1741708935727,166.66666667,0.00024935,2]
[355906986,1741708936850,30000.000001,0.00025,7]
[355906987,1741708946694,500.0,0.00024409,2]
[355906988,1741708981450,2108.36588081,0.000248,2]
[355906989,1741708986147,-300.0,0.00025023,2]
[355906990,1741709003444,1268.837548,0.00024161,2]
[355906991,1741709007839,8014.0,0.00025,2]
[355906993,1741709048367,-500.0,0.00025016,2]
[355906995,1741709106185,1160.8071169,0.00024161,2]
[355906996,1741709150224,7905.9524018,0.00024273,2]
[355906997,1741709177469,-500.0,0.00025012,2]
[355906999,1741709214813,10000.0,0.00024409,2]
[355907001,1741709242349,-500.0,0.00025011,2]
[355907002,1741709282741,702.78862694,0.000229,2]
[355907007,1741709308096,-180.09194162,0.00025011,2]
[355907010,1741709329447,24900.0,0.0002418,2]
[355907011,1741709333968,804.6498817,0.00024573,2]
[355907012,1741709334569,804.6498817,0.00024842,2]
[355907013,1741709356137,-1236.40235497,0.00025011,2]
[355907014,1741709356160,-161.11,0.00025034,2]
[355907015,1741709356182,-55.6680345,0.00025034,2]
[355907019,1741709415501,170.027829,0.00024443,2]
[355907020,1741709415728,170.027829,0.00024443,120]
[355907058,1741709432723,-669.05488342,0.00025034,2]
[355907059,1741709432736,-1028.685895,0.00025043,2]
[355907060,1741709432746,-300.0,0.00025043,2]
[355907061,1741709432756,-500.0,0.00025044,2]
[355907062,1741709432766,-500.0,0.00025044,2]
[355907063,1741709432776,-500.0,0.00025044,2]
[355907064,1741709432787,-500.0,0.00025044,2]
[355907065,1741709432798,-500.0,0.00025044,2]
[355907066,1741709432808,-500.0,0.00025044,2]
[355907067,1741709432820,-500.0,0.00025044,2]
[355907068,1741709432834,-229.09615795,0.00025044,2]
[355907069,1741709432844,-177.145947,0.00025044,2]
[355907070,1741709432854,-4240.5198414,0.00025044,2]
[355907071,1741709432866,-15759.4801586,0.00025044,2]
[355907072,1741709432876,-804.6498817,0.00025168,2]
[355907073,1741709432886,-177.145947,0.00025251,2]
[355907074,1741709432895,-409.01,0.00025348,2]
[355907075,1741709432905,-409.01,0.00025348,2]
[355907076,1741709432914,-409.01,0.00025348,2]
[355907077,1741709432924,-409.01,0.00025351,2]
[355907078,1741709432934,-804.6498817,0.00025354,2]
[355907079,1741709432944,-6084.31131805,0.00025358,2]
[355907080,1741709432954,-1012.0352487,0.00025361,2]
[355907081,1741709432963,-3181.5861328,0.00025361,2]
[355907082,1741709432973,-195.625961,0.00025361,2]
[355907083,1741709432982,-166.66666667,0.00025362,2]
[355907084,1741709432992,-409.01,0.00025439,2]
[355907085,1741709433001,-409.01,0.00025439,2]
[355907086,1741709433011,-409.01,0.00025439,2]
[355907087,1741709433021,-152.0,0.0002544,2]
[355907088,1741709433031,-409.01,0.00025443,2]
[355907089,1741709433042,-409.01,0.00025443,2]
[355907090,1741709433053,-6490.49701686,0.00025449,2]
[355907091,1741709433063,-6490.49701684,0.00025453,2]
[355907092,1741709433073,-1009.57,0.00025453,3]
[355907093,1741709433083,-504.79,0.00025453,3]
[355907094,1741709433093,-252.39,0.00025453,3]
[355907095,1741709433104,-757.2,0.00025453,3]
[355907096,1741709433114,-6490.49701684,0.00025457,2]
[355907097,1741709433125,-177.145947,0.00025458,2]
[355907098,1741709433135,-6490.49701684,0.0002546,2]
[355907099,1741709433145,-500.0,0.00025462,2]
[355907100,1741709433155,-500.0,0.00025462,2]
[355907101,1741709433166,-160.31494633,0.00025463,2]
[355907102,1741709433177,-500.0,0.00025463,2]
[355907103,1741709433187,-500.0,0.00025463,2]
[355907104,1741709433198,-500.0,0.00025463,2]
[355907105,1741709433208,-500.0,0.00025463,2]
[355907106,1741709433219,-500.0,0.00025463,2]
[355907107,1741709433230,-500.0,0.00025463,2]
[355907108,1741709433240,-500.0,0.00025463,2]
[355907109,1741709433251,-500.0,0.00025463,2]
[355907110,1741709433262,-500.0,0.00025463,2]
[355907111,1741709433272,-500.0,0.00025463,2]
[355907112,1741709433283,-500.0,0.00025463,2]
[355907113,1741709433294,-500.0,0.00025463,2]
[355907114,1741709433306,-500.0,0.00025463,2]
[355907115,1741709433316,-500.0,0.00025463,2]
[355907116,1741709433327,-500.0,0.00025463,2]
[355907117,1741709433338,-500.0,0.00025463,2]
[355907118,1741709433347,-500.0,0.00025463,2]
[355907119,1741709433358,-500.0,0.00025463,2]
[355907120,1741709433368,-500.0,0.00025463,2]
[355907121,1741709433379,-157.75400397,0.00025463,2]
[355907133,1741709438365,-204.52,0.00025034,2]
[355907134,1741709438375,-204.52,0.00025443,2]
[355907135,1741709438384,-500.0,0.00025459,2]
[355907136,1741709438394,-500.0,0.00025462,2]
[355907137,1741709438405,-198.17624364,0.00025462,2]
[355907138,1741709438416,-486.94173107,0.00025462,2]
[355907139,1741709438426,-290.46315686,0.00025462,2]
[355907140,1741709438437,-500.0,0.00025462,2]
[355907141,1741709438447,-361.91526843,0.00025462,2]
[355907147,1741709440515,-0.00932063,0.00025462,2]
[355907248,1741709528136,500.0,0.0001,3]
[355907260,1741709583682,536.73968795,0.00025,3]
[355907261,1741709584356,1328.78734555,0.00023261,2]
[355907263,1741709649522,-179.5153825,0.00025358,2]
[355907264,1741709649545,-300.0,0.00025358,2]
[355907265,1741709649567,-1335.92079317,0.00025359,2]
[355907266,1741709649589,-5446.53324903,0.00025359,2]
[355907267,1741709649609,-1335.92079316,0.00025379,2]
[355907268,1741709649632,-1335.92079316,0.00025399,2]
[355907269,1741709649654,-1335.92079316,0.00025419,2]
[355907270,1741709649677,-1808.82,0.00025438,3]
[355907271,1741709649698,-1808.82,0.00025438,3]
[355907272,1741709649722,-1335.92079316,0.00025439,2]
[355907273,1741709649746,-480.0,0.00025447,2]
[355907274,1741709649768,-43296.70740266,0.00025448,2]
[355907275,1741709661868,1000.0,0.00025,4]
[355907298,1741709718700,250.0,0.00024442,2]
[355907301,1741709752864,280.0,0.00024658,2]
[355907310,1741709839314,5105.43409172,0.00024943,2]
[355907318,1741709886000,885.85823036,0.00023357,2]
[355907320,1741709894045,190.23728722,0.00024943,2]
[355907321,1741709905080,500.0,0.0002,2]
[355907322,1741709928827,500.0,0.00024,2]
[355907323,1741709941860,500.0,0.00025,2]
[355907324,1741709959151,500.0,0.00025,2]
[355907325,1741709960197,60092.12290555,0.00024783,2]
[355907326,1741709973574,500.0,0.0002,2]
[355907327,1741709984449,20911.26048499,0.00025,120]
[355907328,1741709984472,42697.04951501,0.00025,120]
[355907329,1741709989152,500.0,0.0002,120]
[355907330,1741710001413,2000.0,0.0002501,2]
[355907332,1741710003095,500.0,0.00024273,2]
[355907333,1741710004898,2000.0,0.0002501,2]
[355907334,1741710008220,2000.0,0.0002501,2]
[355907335,1741710009181,2000.0,0.0002501,2]
[355907336,1741710010146,2000.0,0.0002501,2]
[355907339,1741710022940,14434.44572037,0.00024943,2]
[355907340,1741710030931,634.418774,0.00024032,2]
[355907342,1741710046239,568438.12,0.00025,2]
[355907343,1741710051927,9936.0,0.0002501,2]
[355907345,1741710072575,500.0,0.0002,2]
[355907346,1741710073895,568.57743824,0.0002459,2]
[355907347,1741710077419,442682.45,0.0002501,2]
[355907348,1741710108425,500.0,0.0002,3]
[355907353,1741710120115,4467.25483022,0.00024931,2]
[355907354,1741710133880,800.0,0.00024655,2]
[355907355,1741710135789,151.0,0.00025,15]
[355907356,1741710136082,151.0,0.00025,10]
[355907357,1741710136491,151.0,0.00025,20]
[355907358,1741710136850,151.0,0.00025,19]
[355907359,1741710137152,151.0,0.00025,13]
[355907360,1741710137576,151.0,0.00025,14]
[355907361,1741710138064,151.0,0.00025,12]
[355907362,1741710138780,151.0,0.00025,14]
[355907363,1741710138918,151.0,0.00025,11]
[355907364,1741710138977,151.0,0.00025,11]
[355907365,1741710140370,500.0,0.00025,2]
[355907368,1741710164123,15606.7425017,0.00024222,2]
[355907369,1741710179185,54479.19417114,0.0002501,2]
[355907370,1741710187530,879.78017484,0.00022943,2]
[355907371,1741710193786,800.0,0.00024247,2]
[355907372,1741710196414,804.6498817,0.00023847,2]
[355907373,1741710196734,804.6498817,0.00024293,2]
[355907374,1741710197066,804.6498817,0.00024558,2]
[355907375,1741710197431,804.6498817,0.00024796,2]
[355907376,1741710201204,-500.0,0.0002502,2]
[355907377,1741710210822,350.12,0.0002501,3]
[355907378,1741710218338,150.31823654,0.00024919,2]
[355907379,1741710220289,150.31823654,0.00024923,2]
[355907380,1741710221747,175.06,0.0002501,3]
[355907381,1741710222313,150.31823654,0.00024926,2]
[355907382,1741710224599,150.31823654,0.0002493,2]
[355907383,1741710226922,500.0,0.00025,2]
[355907384,1741710232563,2778.38,0.0002501,3]
[355907385,1741710241737,500.0,0.00025,10]
[355907386,1741710242006,339.0,0.00022,2]
[355907387,1741710242396,339.0,0.00022192,2]
[355907388,1741710242804,339.0,0.00022466,2]
[355907389,1741710243134,339.0,0.0002274,2]
[355907390,1741710243642,1700.21,0.0002501,3]
[355907391,1741710244060,339.0,0.00023014,2]
[355907392,1741710244488,339.0,0.00023014,2]
[355907393,1741710244834,339.0,0.00024164,2]
[355907394,1741710247910,339.0,0.00024164,2]
[355907396,1741710254763,1964.12,0.0002501,3]
[355907398,1741710265755,982.06,0.0002501,3]
[355907399,1741710275216,179.51538249,0.0002493,2]
[355907400,1741710276859,491.03,0.0002501,3]
[355907401,1741710287682,245.52,0.0002501,3]
[355907404,1741710298694,736.56,0.0002501,3]
[355907405,1741710304132,28980.6,0.0002501,2]
[355907406,1741710304916,-300.0,0.00025019,2]
[355907412,1741710338091,-201.28920938,0.00025019,2]
[355907413,1741710339613,2493.55742688,0.00024919,2]
[355907414,1741710342280,-298.71079062,0.00025019,2]
[355907415,1741710342306,-119.75639311,0.00025019,2]
[355907418,1741710382507,10000.0,0.00024273,2]
[355907419,1741710400950,3908.84797646,0.00024919,2]
[355907420,1741710411544,14825.54674121,0.00025,2]
[355907421,1741710411570,85174.45325879,0.00025,2]
[355907422,1741710413614,12991.00114827,0.00024942,2]
[355907423,1741710422469,1794.31,0.00025008,3]
[355907424,1741710433718,897.15,0.00025008,3]
[355907426,1741710443633,151.0,0.00025,20]
[355907427,1741710443944,151.0,0.00025,15]
[355907428,1741710444696,448.58,0.00025008,3]
[355907430,1741710444872,151.0,0.00025,14]
[355907431,1741710445254,151.0,0.00025,20]
[355907432,1741710445561,151.0,0.00025,11]
[355907433,1741710445969,151.0,0.00025,10]
[355907434,1741710446280,151.0,0.00025,18]
[355907436,1741710447425,151.0,0.00025,15]
[355907437,1741710447523,151.0,0.00025,15]
[355907438,1741710447691,151.0,0.00025,13]
[355907440,1741710450485,100000.0,0.00025,2]
[355907443,1741710455543,224.29,0.00025008,3]
[355907444,1741710466388,672.89,0.00025008,3]
[355907446,1741710489056,802.84871881,0.0002291,2]
[355907447,1741710494597,549376.602523,0.00025008,2]
[355907448,1741710498576,6309.69474863,0.00021,5]
[355907449,1741710498635,638.54150598,0.00019205,5]
[355907451,1741710501559,5696.84924257,0.0002,120]
[355907456,1741710508500,24900.0,0.00024022,2]
[355907462,1741710519084,18898.29094043,0.00018,4]
[355907463,1741710523980,2738.46242316,0.00015,4]
[355907464,1741710528988,151.0,0.00024,14]
[355907465,1741710529129,273.03741615,0.0002045,30]
[355907466,1741710529821,14650.36871489,0.00015,2]
[355907474,1741710535213,398.08896733,0.0002501,2]
[355907476,1741710541875,200000.0,0.0002501,2]
[355907484,1741710562775,215833.89551333,0.00024769,2]
[355907486,1741710629856,107715.0,0.0002501,2]
[355907487,1741710630732,1303.947,0.00025,7]
[355907547,1741710632500,-300.0,0.00025016,2]
[355907549,1741710632510,-500.0,0.00025017,2]
[355907552,1741710632520,-500.0,0.00025017,2]
[355907555,1741710632529,-181.76065796,0.00025017,2]
[355907559,1741710632565,-4783.74878695,0.00025017,2]
[355907561,1741710632575,-500.0,0.00025017,2]
[355907563,1741710632584,-500.0,0.00025017,2]
[355907565,1741710632594,-4965.50944491,0.00025017,2]
[355907568,1741710632604,-500.0,0.00025017,2]
[355907570,1741710632614,-500.0,0.00025017,2]
[355907572,1741710632623,-4965.50944491,0.00025017,2]
[355907574,1741710632633,-500.0,0.00025017,2]
[355907576,1741710632643,-500.0,0.00025017,2]
[355907578,1741710632653,-4965.50944491,0.00025017,2]
[355907580,1741710632662,-500.0,0.00025017,2]
[355907582,1741710632672,-500.0,0.00025017,2]
[355907584,1741710632683,-500.0,0.00025017,2]
[355907586,1741710632692,-4965.50944491,0.00025017,2]
[355907588,1741710632702,-500.0,0.00025017,2]
[355907590,1741710632711,-4965.50944491,0.00025017,2]
[355907592,1741710632721,-500.0,0.00025017,2]
[355907594,1741710632731,-450.0,0.00025017,2]
[355907596,1741710632741,-500.0,0.00025017,2]
[355907598,1741710632751,-4965.50944491,0.00025017,2]
[355907600,1741710632760,-500.0,0.00025017,2]
[355907602,1741710632771,-500.0,0.00025017,2]
[355907604,1741710632781,-4965.50944491,0.00025017,2]
[355907606,1741710632791,-4965.50944491,0.00025017,2]
[355907608,1741710632801,-500.0,0.00025017,2]
[355907610,1741710632811,-500.0,0.00025017,2]
[355907612,1741710632821,-4965.50944491,0.00025017,2]
[355907614,1741710632830,-500.0,0.00025017,2]
[355907615,1741710632840,-500.0,0.00025017,2]
[355907617,1741710632851,-4965.50944491,0.00025017,2]
[355907619,1741710632862,-500.0,0.00025017,2]
[355907621,1741710632873,-500.0,0.00025017,2]
[355907623,1741710632883,-4965.50944491,0.00025017,2]
[355907625,1741710632893,-500.0,0.00025017,2]
[355907627,1741710632903,-500.0,0.00025017,2]
[355907629,1741710632915,-500.0,0.00025017,2]
[355907631,1741710632925,-2422.15435732,0.00025017,2]
[355907633,1741710632939,-255.29171343,0.00025017,2]
[355907841,1741710639964,-404.784,0.00025016,2]
[355907842,1741710640256,-95.216,0.00025016,2]
[355907843,1741710640267,-500.0,0.00025016,2]
[355907844,1741710640278,-318.90647513,0.00025016,2]
[355907845,1741710640288,-600.0,0.00025016,2]
[355907846,1741710640298,-500.0,0.00025016,2]
[355907847,1741710640307,-500.0,0.00025016,2]
[355907848,1741710640318,-500.0,0.00025016,2]
[355907849,1741710640328,-500.0,0.00025017,2]
[355907850,1741710640338,-500.0,0.00025017,2]
[355907851,1741710640347,-500.0,0.00025017,2]
[355907852,1741710640357,-683.75,0.00025017,2]
[355907853,1741710640367,-500.0,0.00025017,2]
[355907854,1741710640378,-500.0,0.00025017,2]
[355907855,1741710640388,-500.0,0.00025017,2]
[355907856,1741710640398,-500.0,0.00025017,2]
[355907857,1741710640407,-500.0,0.00025017,2]
[355907858,1741710640417,-9999.0,0.00025017,2]
[355907859,1741710640431,-947.13,0.00025017,2]
[355907860,1741710640441,-8681.37,0.00025018,2]
[355907861,1741710640451,-500.0,0.00025018,2]
[355907862,1741710640460,-2202.3,0.00025018,2]
[355907863,1741710640470,-1730.45,0.00025018,7]
[355907864,1741710640479,-1065.66,0.00025018,2]
[355907865,1741710640489,-1237.69,0.00025018,2]
[355907866,1741710640499,-500.0,0.00025018,2]
[355907867,1741710640509,-1144.11,0.00025018,2]
[355907869,1741710640519,-151.0,0.00025018,2]
[355907870,1741710640528,-376.827306,0.00025018,7]
[355907871,1741710640537,-376.827306,0.00025018,7]
[355907872,1741710640546,-376.827306,0.00025018,7]
[355907873,1741710640556,-376.827306,0.00025018,7]
[355907874,1741710640566,-376.827306,0.00025018,7]
[355907875,1741710640577,-1835.729244,0.00025018,7]
[355907876,1741710640587,-1835.729244,0.00025018,7]
[355907877,1741710640596,-1835.729244,0.00025018,7]
[355907878,1741710640607,-1835.729244,0.00025018,7]
[355907879,1741710640616,-1835.729244,0.00025018,7]
[355907880,1741710640626,-376.827306,0.00025018,7]
[355907881,1741710640636,-376.827306,0.00025018,7]
[355907882,1741710640646,-376.827306,0.00025018,7]
[355907883,1741710640656,-376.827306,0.00025018,7]
[355907884,1741710640666,-376.827306,0.00025018,7]
[355907885,1741710640679,-1835.729244,0.00025018,7]
[355907886,1741710640688,-1835.729244,0.00025018,7]
[355907887,1741710640697,-152.0,0.00025018,2]
[355907888,1741710640707,-1835.729244,0.00025018,7]
[355907889,1741710640717,-1835.729244,0.00025018,7]
[355907890,1741710640726,-1835.729244,0.00025018,7]
[355907891,1741710640736,-600.0,0.00025018,2]
[355907892,1741710640746,-500.0,0.00025018,2]
[355907893,1741710640756,-2077.252932,0.00025019,7]
[355907894,1741710640765,-2077.252932,0.00025019,7]
[355907895,1741710640775,-2077.252932,0.00025019,7]
[355907896,1741710640785,-2077.252932,0.00025019,7]
[355907897,1741710640795,-2077.252932,0.00025019,7]
[355907898,1741710640804,-2077.252932,0.00025019,7]
[355907899,1741710640814,-2077.252932,0.00025019,7]
[355907900,1741710640824,-2077.252932,0.00025019,7]
[355907901,1741710640833,-2077.252932,0.00025019,7]
[355907903,1741710640843,-2077.252932,0.00025019,7]
[355907906,1741710640853,-2077.252932,0.00025019,7]
[355907908,1741710640863,-2077.252932,0.00025019,7]
[355907910,1741710640873,-2077.252932,0.00025019,7]
[355907912,1741710640883,-2077.252932,0.00025019,7]
[355907914,1741710640892,-2077.252932,0.00025019,7]
[355907916,1741710640903,-2077.252932,0.00025019,7]
[355907918,1741710640913,-416.66666667,0.00025019,7]
[355907920,1741710640924,-376.827306,0.00025019,7]
[355907922,1741710640934,-376.827306,0.00025019,7]
[355907924,1741710640943,-376.827306,0.00025019,7]
[355907926,1741710640952,-1835.729244,0.00025019,7]
[355907928,1741710640962,-1835.729244,0.00025019,7]
[355907930,1741710640972,-1008.71275826,0.00025019,7]
[355907934,1741710641515,-0.00169835,0.00025017,2]
[355908095,1741710643470,-29.65674264,0.00025017,2]
[355908387,1741710646654,-970.34155902,0.00025017,2]
[355908388,1741710646664,-638.1,0.00025017,2]
[355908389,1741710646673,-500.0,0.00025017,2]
[355908390,1741710646683,-500.0,0.00025017,2]
[355908391,1741710646693,-439.64046576,0.00025018,2]
[355908392,1741710646702,-500.0,0.00025019,7]
[355908393,1741710646711,-827.01648574,0.00025019,7]
[355908394,1741710646720,-376.827306,0.00025019,7]
[355908395,1741710646730,-376.827306,0.00025019,7]
[355908396,1741710646739,-376.827306,0.00025019,7]
[355908397,1741710646748,-1218.33384375,0.00025019,7]
[355909308,1741710696104,739.83835467,0.00024916,2]
[355909325,1741710710153,3420.24197942,0.00024916,2]
[355909326,1741710713637,250.0,0.00024019,2]
[355909327,1741710752467,151.0,0.00025,10]
[355909328,1741710752774,151.0,0.00025,11]
[355909329,1741710753096,151.0,0.00025,12]
[355909330,1741710753492,151.0,0.00025,17]
[355909331,1741710753837,151.0,0.00025,15]
[355909332,1741710754184,151.0,0.00025,19]
[355909333,1741710754584,151.0,0.00025,12]
[355909334,1741710754882,151.0,0.00025,16]
[355909335,1741710755191,151.0,0.00025,18]
[355909336,1741710755514,151.0,0.00025,10]
[355909343,1741710790387,670.29068325,0.0002291,2]
[355909345,1741710793771,439501.282019,0.00025005,2]
[355909346,1741710795544,58581.71351245,0.00025005,2]
[355909347,1741710795573,103824.68010855,0.00025005,2]
[355909348,1741710795643,16240.6393621,0.00025005,2]
[355909349,1741710795728,16240.6393621,0.00025007,2]
[355909350,1741710795821,16240.6393621,0.00025008,2]
[355909351,1741710806058,366.11506596,0.0002501,2]
[355909352,1741710840816,339.0,0.00025,2]
[355909353,1741710841141,339.0,0.00024932,2]
[355909354,1741710847755,1121.44,0.00025005,3]
[355909355,1741710858164,560.72,0.00025005,3]
[355909356,1741710869517,280.36,0.00025005,3]
[355909357,1741710879874,841.1,0.00025004,3]
[355909359,1741710906505,198.38506888,0.00024915,2]
[355909360,1741710917411,179.51538249,0.00024918,2]
[355909361,1741710923351,281.08637677,0.00024914,2]
[355909362,1741710924571,53729.1485287,0.00024208,2]
[355909369,1741710973020,654.17,0.00025004,3]
[355909370,1741710984320,327.08,0.00025004,3]
[355909371,1741710995225,163.54,0.00025004,3]
[355909372,1741711006169,490.67,0.00025005,3]
[355909373,1741711031840,20051.54419164,0.00024915,2]
[355909377,1741711053974,500.0,0.00024015,2]
[355909378,1741711061113,1700.28716537,0.00024915,2]
[355909379,1741711063513,151.0,0.00025,13]
[355909380,1741711063868,151.0,0.00025,13]
[355909381,1741711064239,151.0,0.00025,18]
[355909382,1741711064594,151.0,0.00025,10]
[355909383,1741711065850,8933.7082755,0.00025,2]
[355909384,1741711069283,500.0,0.0002501,2]
[355909385,1741711091771,446.8604555,0.0002291,2]
[355909386,1741711104966,439501.282018,0.00025003,2]
[355909387,1741711107603,24360.959043,0.00025003,2]
[355909388,1741711107645,1624.0639362,0.00025005,2]
[355909389,1741711107696,1624.0639362,0.00025006,2]
[355909390,1741711107781,4872.1918086,0.00025007,2]
[355909391,1741711119976,200000.0,0.0002501,2]
[355909392,1741711120025,500.0,0.0002501,2]
[355909393,1741711120363,667.982,0.00024512,7]
[355909394,1741711120425,172.88216604,0.00024512,7]
[355909395,1741711125393,317.209387,0.00024273,2]
[355909396,1741711144558,500.0,0.0002501,2]
[355909397,1741711150099,381.59,0.00025002,3]
[355909399,1741711160954,190.8,0.00025002,3]
[355909400,1741711163196,500.0,0.0002501,2]
[355909401,1741711171771,572.41,0.00025002,3]
[355909402,1741711173825,52252.0,0.0002501,2]
[355909403,1741711180376,500.0,0.0002501,2]
[355909404,1741711188534,500.0,0.0002501,2]
[355909405,1741711199792,11691.90103347,0.00024942,2]
[355909407,1741711216224,500.0,0.0002501,2]
[355909408,1741711220812,500.0,0.0002501,2]
[355909409,1741711231538,2992.71173194,0.00024912,2]
[355909410,1741711238399,500.0,0.0002501,2]
[355909411,1741711242996,500.0,0.0002501,2]
[355909412,1741711259513,500.0,0.0002501,2]
[355909413,1741711263896,300.0,0.0002501,2]
[355909415,1741711287233,500.0,0.0002501,2]
[355909419,1741711326641,432.17,0.0002501,2]
[355909420,1741711336594,190.79,0.00025001,3]
[355909421,1741711347473,572.41,0.00025001,3]
[355909422,1741711351799,500.0,0.0002501,2]
[355909423,1741711351899,500.0,0.0002501,2]
[355909424,1741711352529,500.0,0.0002501,2]
[355909425,1741711354347,500.0,0.0002501,2]
[355909426,1741711354604,500.0,0.0002501,2]
[355909427,1741711354742,500.0,0.0002501,2]
[355909428,1741711354805,571.19568738,0.0002501,2]
[355909429,1741711354839,623.33771588,0.0002501,2]
[355909430,1741711354953,500.0,0.0002501,2]
[355909431,1741711354989,500.0,0.0002501,2]
[355909432,1741711355029,1433.72083063,0.0002501,2]
[355909435,1741711390311,20000.0,0.00025,2]
[355909436,1741711394340,-297.90697033,0.0002291,2]
[355909437,1741711407283,-10000.0,0.00025,2]
[355909442,1741711442461,-254.0,0.00024932,2]
[355909443,1741711450760,381.58,0.0002499,3]
[355909444,1741711456159,-486.26231496,0.00024388,2]
[355909445,1741711463409,2913.97889377,0.00025,10]
[355909447,1741711524333,-300.0,0.00024388,2]
[355909452,1741711549805,-350.0,0.00023967,2]
[355909453,1741711574916,-150.0,0.00023919,2]
[355909457,1741711609153,581.588543,0.00024999,7]
[355909458,1741711610170,581.588543,0.00024999,7]
[355909459,1741711610978,581.588543,0.00024999,7]
[355909460,1741711611671,581.588543,0.00024999,7]
[355909461,1741711611825,581.588543,0.00024999,7]
[355909462,1741711612205,581.588543,0.00024999,7]
[355909463,1741711612618,581.588543,0.00024999,7]
[355909464,1741711613085,581.588543,0.00024999,7]
[355909465,1741711613600,581.588543,0.00024999,7]
[355909466,1741711614062,581.588543,0.00024999,7]
[355909467,1741711614445,581.588543,0.00024999,7]
[355909468,1741711614999,581.588543,0.00024999,7]
[355909469,1741711616063,581.588543,0.00024999,7]
[355909470,1741711616688,581.588543,0.00024999,7]
[355909471,1741711621477,581.588543,0.00024999,7]
[355909472,1741711622014,581.588543,0.00024999,7]
[355909473,1741711622292,581.588543,0.00024999,7]
[355909474,1741711623092,581.588543,0.00024999,7]
[355909475,1741711624232,581.588543,0.00024999,7]
[355909476,1741711624628,581.588538,0.00024999,7]
[355909477,1741711627168,-183.742672,0.00023919,2]
[355909478,1741711636625,772.92946154,0.00023,30]
[355909480,1741711667366,151.0,0.00025,5]
[355909481,1741711684490,-200.0,0.00023919,2]
[355909482,1741711696263,-150.14954901,0.0002291,2]
[355909484,1741711704538,-169.0,0.0002291,2]
[355909486,1741711724064,-300.0,0.0002291,2]
[355909487,1741711736808,-95.61160839,0.0002291,2]
[355909488,1741711736831,-204.38839161,0.00023919,2]
[355909489,1741711745912,-179.2570724,0.00023919,2]
[355909490,1741711746138,-5616.39971138,0.00023919,2]
[355909492,1741711750475,1658.35,0.00023966,7]
[355909493,1741711750714,1658.35,0.0002424,7]